Workbook

Sheet Sheet7 (hidden)
A1: Rent Subsidy Calculator for Whatcom Homeless Service Center (revised 3/30/16)
A3: Tenant Name/ID Number: | C3: Joe Cool
A5: 1. Household size | C5: 3 | D5: persons | E5: ="Eligible for Units with "& IF(C5<8,(VLOOKUP(C5,'OCCUPANCY_days in month'!A2:C10,2,FALSE)&" - "&VLOOKUP(C5,'OCCUPANCY_days in month'!A2:C10,3,FALSE)&" Bedrooms"), "4 Bedrooms") -> Eligible for Units with 1 - 3 Bedrooms
A6: 2. Bedrooms in unit | C6: 2 | D6: bedrooms | E6: x | F6: y | G6: Results
A7: 2a. Zip Code | C7: 95611 | E7: =MATCH(C6,FMRZIP_AMI!B3:F3,0) -> 3 | F7: =MATCH(C7,FMRZIP_AMI!A4:A72, 0) -> 4 | G7: =INDEX(FMRZIP_AMI!A4:F72,2,MATCH(E7,FMRZIP_AMI!B3:F3,0)) -> 2233
A8: 3. Monthly Income: | E8: Lookup FMRZIP based on zip/bedrooms (Hide from user) | K8: 2019 Sacramento Median Family Inc
B9: Source | D9: Amount | K9: HH Size | L9: Median Income
A10: 1 | B10: TANF | D10: 478 | E10: x 12 = | F10: =D10*12 -> 5736 | K10: 1 | L10: 58520
A11: 2 | E11: x 12 = | F11: =D11*12 -> 0 | K11: 2 | L11: 66880
A12: 3 | E12: x 12 = | F12: =D12*12 -> 0 | K12: 3 | L12: 75240
E13: Total Annual Income all sources: | K13: 4 | L13: 83600
I14: =SUM(F10:F12) -> 5736 | K14: 5 | L14: 90288
A15: 4. 50% of Gross Median Income test: does family's gross income exceed 50% of median income | K15: 6 | L15: 96976
A16: for county? | C16: =I14/(VLOOKUP(C5,K10:L17,2,FALSE)) -> 0.07623604466 | D16: If YES stop here - household does not qualify for assistance. | K16: 7 | L16: 103664
K17: 8 | L17: 110352
A18: 5. Less Deductions:
B19: Dependent deductions ($480 x | E19: 2 | F19: ) | I19: =E19*480 -> 960
B20: Out of pocket childcare expenses (provide documentation)
B21: Elderly deduction (elderly, disabled only) ($400 per household) x
B22: Other required restitution (provide documentation)
G23: TOTAL: | I23: =SUM(I19:I22) -> 960
A24: 6. Calculation of 30% of adjusted income
B25: a. Adjusted Income (Total of monthly income less deductions) | I25: =I14-I23 -> 4776
B26: b. Monthly Adjusted Income (adjusted income divided by 12) | I26: =I25/12 -> 398
B27: c. Equals 80% of adjusted income (monthly adjusted income (6b) times .80) | I27: =SUM(I26*0.8) -> 318.4
A29: 7. Calculation of tenant payment if tenant pays no utilities:
B30: a. Equals tenant payment | I30: =I27 -> 318.4
A32: 8. Rent Ceiling Check
B33: a. Contract Rent | I33: 841
B34: b. Plus utilities or utility allowance (Actual or Housing Authority Calculation) | I34: 0
B35: c. Equals gross rent | I35: =I33+I34 -> 841
B36: d. Gross rent of | C36: =I35 -> 841 | D36: may not exceed rent standard of | G36: =INDEX(FMRZIP_AMI!A4:F72,2,MATCH(E7,FMRZIP_AMI!B3:F3,0)) -> 2233
B37: *Rent Standard =100% of FMR for zip code based on bedroom units.
A39: 9. Calculation of Monthly subsidy:
B40: a. Contract Rent | I40: =I33 -> 841
B41: b. Less tenant payment (with utility allowance) | I41: =I30-I34 -> 318.4
B42: c. Equals landlord subsidy | I42: =I40-I41 -> 522.6
A44: 10. Pro-rated amount if move-in NOT on the first day of the month
B46: a. Do you want to pro-rate the first month's rent? | G46: Yes
B48: b. Move-in date | D48: Month | E48: April | F48: Day | G48: 23 | H48: Multiplier | I48: =1-((G48-1)/(VLOOKUP(E48,A66:B77,2,FALSE))) -> 0.2666666667
A50: 11. Summary of program assistance:
B51: a. Tenant payment (line 7c minus utility alownace) | I51: =(IF(G46="Yes",I48*I41,I41)) -> 84.90666667
B52: b. Landlord subsidy (line 8c) | I52: =(IF(G46="Yes",(I48)*I42,I42)) -> 139.36 | N52: 13
B53: c. Security deposit assistance | N53: 14
B54: d. First and last month's rent
B55: e. Credit check assistance
B56: f. Other assistance:
B57: g. Equals total program assistance
A60: Prepared by: | G60: Date:
A62: Yes
A63: No
A66: January | B66: 31
A67: February | B67: 28 | N67: 27
A68: March | B68: 31 | N68: 28
A69: April | B69: 30 | N69: 29
A70: May | B70: 31 | N70: 30
A71: June | B71: 30 | N71: 31
A72: July | B72: 31
A73: August | B73: 31
A74: September | B74: 30
A75: October | B75: 31
A76: November | B76: 30
A77: December | B77: 31

Sheet Source_Occupancy (hidden)
A1: Bedrooms | B1: Min | C1: Max
A2: 0 | B2: 1 | C2: 2 | H2: 1 person | I2: 2 people
A3: 1 | B3: 1 | C3: 3 | H3: 1 person | I3: 3 people
A4: 2 | B4: 2 | C4: 5 | H4: 2 people | I4: 5 people
A5: 3 | B5: 3 | C5: 7 | H5: 3 people | I5: 7 people
A6: 4 | B6: 4 | C6: 9 | H6: 4 people | I6: 9 people
A12: People | B12: Min Bed | C12: Max Bed
A13: 1 | B13: 0 | C13: 1
A14: 2 | B14: 0 | C14: 1
A15: 3 | B15: 1 | C15: 3
A16: 4 | B16: 2 | C16: 4
A17: 5 | B17: 2 | C17: 4
A18: 6 | B18: 3 | C18: 4
A19: 7 | B19: 3 | C19: 4
A20: 8 | B20: 4 | C20: 4
A21: 9 | B21: 4 | C21: 4

Sheet 60% (hidden)
A1: Rent Subsidy Calculator for Whatcom Homeless Service Center (revised 3/30/16)
A3: Tenant Name/ID Number: | C3: Joe Cool
A5: 1. Household size | C5: 3 | D5: persons
A6: 2. Bedrooms in unit | C6: 2 | D6: bedrooms
A8: 3. Monthly Income: | K8: 2016 Whatcom County Income Limits
B9: Source | D9: Amount | K9: HH Size | L9: Median Income
A10: 1 | B10: TANF | D10: 478 | E10: x 12 = | F10: =D10*12 -> 5736 | K10: 1 | L10: 48930
A11: 2 | E11: x 12 = | F11: =D11*12 -> 0 | K11: 2 | L11: 55920
A12: 3 | E12: x 12 = | F12: =D12*12 -> 0 | K12: 3 | L12: 62910
E13: Total Annual Income all sources: | K13: 4 | L13: 69900
I14: =SUM(F10:F12) -> 5736 | K14: 5 | L14: 75492
A15: 4. 50% of Gross Median Income test: does family's gross income exceed 50% of median income | K15: 6 | L15: 81084
A16: for county? | C16: =I14/(VLOOKUP(C5,K10:L17,2,FALSE)) -> 0.09117787315 | D16: If YES stop here - household does not qualify for assistance. | K16: 7 | L16: 86676
K17: 8 | L17: 92268
A18: 5. Less Deductions:
B19: Dependent deductions ($480 x | E19: 2 | F19: ) | I19: =E19*480 -> 960
B20: Out of pocket childcare expenses (provide documentation)
B21: Elderly deduction (elderly, disabled only) ($400 per household) x
B22: Other required restitution (provide documentation)
G23: TOTAL: | I23: =SUM(I19:I22) -> 960
A24: 6. Calculation of 30% of adjusted income
B25: a. Adjusted Income (Total of monthly income less deductions) | I25: =I14-I23 -> 4776
B26: b. Monthly Adjusted Income (adjusted income divided by 12) | I26: =I25/12 -> 398
B27: c. Equals 60% of adjusted income (monthly adjusted income (6b) times .60) | I27: =SUM(I26*0.6) -> 238.8
A29: 7. Calculation of tenant payment if tenant pays no utilities: | K29: 2016 Whatcom County FMR (100%)
B30: a. Equals tenant payment | I30: =I27 -> 238.8 | K30: Bedrooms | L30: FMR
K31: 0 | L31: 604
A32: 8. Rent Ceiling Check | K32: 1 | L32: 699
B33: a. Contract Rent | I33: 841 | K33: 2 | L33: 910
B34: b. Plus utilities or utility allowance (Actual or Housing Authority Calculation) | I34: 0 | K34: 3 | L34: 1326
B35: c. Equals gross rent | I35: =I33+I34 -> 841 | K35: 4 | L35: 1589
B36: d. Gross rent of | C36: =I35 -> 841 | D36: may not exceed rent standard of | G36: =VLOOKUP(C6,K31:L35,2,FALSE) -> 910
B37: *Rent Standard =100% of FMR for County based on bedroom units.
A39: 9. Calculation of subsidy:
B40: a. Contract Rent | I40: =I33 -> 841
B41: b. Less tenant payment (with utility allowance) | I41: =I30-I34 -> 238.8
B42: c. Equals landlord subsidy | I42: =I40-I41 -> 602.2
A44: 10. Pro-rated amount if move-in NOT on the first day of the month
B46: a. Do you want to pro-rate the first month's rent? | G46: Yes
B48: b. Move-in date | D48: Month | E48: April | F48: Day | G48: 23 | H48: Multiplier | I48: =1-((G48-1)/(VLOOKUP(E48,A66:B77,2,FALSE))) -> 0.2666666667
A50: 11. Summary of program assistance:
B51: a. Tenant payment (line 7c minus utility alownace) | I51: =(IF(G46="Yes",I48*I41,I41)) -> 63.68
B52: b. Landlord subsidy (line 8c) | I52: =(IF(G46="Yes",(I48)*I42,I42)) -> 160.5866667 | N52: 13
B53: c. Security deposit assistance | N53: 14
B54: d. First and last month's rent
B55: e. Credit check assistance
B56: f. Other assistance:
B57: g. Equals total program assistance
A60: Prepared by: | G60: Date:
A62: Yes
A63: No
A66: January | B66: 31
A67: February | B67: 28 | N67: 27
A68: March | B68: 31 | N68: 28
A69: April | B69: 30 | N69: 29
A70: May | B70: 31 | N70: 30
A71: June | B71: 30 | N71: 31
A72: July | B72: 31
A73: August | B73: 31
A74: September | B74: 30
A75: October | B75: 31
A76: November | B76: 30
A77: December | B77: 31

Sheet 70% (hidden)
A1: Rent Subsidy Calculator for Whatcom Homeless Service Center (revised 3/30/16)
A3: Tenant Name/ID Number: | C3: Joe Cool
A5: 1. Household size | C5: 3 | D5: persons
A6: 2. Bedrooms in unit | C6: 2 | D6: bedrooms
A8: 3. Monthly Income: | K8: 2016 Whatcom County Income Limits
B9: Source | D9: Amount | K9: HH Size | L9: Median Income
A10: 1 | B10: TANF | D10: 478 | E10: x 12 = | F10: =D10*12 -> 5736 | K10: 1 | L10: 48930
A11: 2 | E11: x 12 = | F11: =D11*12 -> 0 | K11: 2 | L11: 55920
A12: 3 | E12: x 12 = | F12: =D12*12 -> 0 | K12: 3 | L12: 62910
E13: Total Annual Income all sources: | K13: 4 | L13: 69900
I14: =SUM(F10:F12) -> 5736 | K14: 5 | L14: 75492
A15: 4. 50% of Gross Median Income test: does family's gross income exceed 50% of median income | K15: 6 | L15: 81084
A16: for county? | C16: =I14/(VLOOKUP(C5,K10:L17,2,FALSE)) -> 0.09117787315 | D16: If YES stop here - household does not qualify for assistance. | K16: 7 | L16: 86676
K17: 8 | L17: 92268
A18: 5. Less Deductions:
B19: Dependent deductions ($480 x | E19: 2 | F19: ) | I19: =E19*480 -> 960
B20: Out of pocket childcare expenses (provide documentation)
B21: Elderly deduction (elderly, disabled only) ($400 per household) x
B22: Other required restitution (provide documentation)
G23: TOTAL: | I23: =SUM(I19:I22) -> 960
A24: 6. Calculation of 30% of adjusted income
B25: a. Adjusted Income (Total of monthly income less deductions) | I25: =I14-I23 -> 4776
B26: b. Monthly Adjusted Income (adjusted income divided by 12) | I26: =I25/12 -> 398
B27: c. Equals 70% of adjusted income (monthly adjusted income (6b) times .70) | I27: =SUM(I26*0.7) -> 278.6
A29: 7. Calculation of tenant payment if tenant pays no utilities: | K29: 2016 Whatcom County FMR (100%)
B30: a. Equals tenant payment | I30: =I27 -> 278.6 | K30: Bedrooms | L30: FMR
K31: 0 | L31: 604
A32: 8. Rent Ceiling Check | K32: 1 | L32: 699
B33: a. Contract Rent | I33: 841 | K33: 2 | L33: 910
B34: b. Plus utilities or utility allowance (Actual or Housing Authority Calculation) | I34: 0 | K34: 3 | L34: 1326
B35: c. Equals gross rent | I35: =I33+I34 -> 841 | K35: 4 | L35: 1589
B36: d. Gross rent of | C36: =I35 -> 841 | D36: may not exceed rent standard of | G36: =VLOOKUP(C6,K31:L35,2,FALSE) -> 910
B37: *Rent Standard =100% of FMR for County based on bedroom units.
A39: 9. Calculation of subsidy:
B40: a. Contract Rent | I40: =I33 -> 841
B41: b. Less tenant payment (with utility allowance) | I41: =I30-I34 -> 278.6
B42: c. Equals landlord subsidy | I42: =I40-I41 -> 562.4
A44: 10. Pro-rated amount if move-in NOT on the first day of the month
B46: a. Do you want to pro-rate the first month's rent? | G46: Yes
B48: b. Move-in date | D48: Month | E48: April | F48: Day | G48: 23 | H48: Multiplier | I48: =1-((G48-1)/(VLOOKUP(E48,A66:B77,2,FALSE))) -> 0.2666666667
A50: 11. Summary of program assistance:
B51: a. Tenant payment (line 7c minus utility alownace) | I51: =(IF(G46="Yes",I48*I41,I41)) -> 74.29333333
B52: b. Landlord subsidy (line 8c) | I52: =(IF(G46="Yes",(I48)*I42,I42)) -> 149.9733333 | N52: 13
B53: c. Security deposit assistance | N53: 14
B54: d. First and last month's rent
B55: e. Credit check assistance
B56: f. Other assistance:
B57: g. Equals total program assistance
A60: Prepared by: | G60: Date:
A62: Yes
A63: No
A66: January | B66: 31
A67: February | B67: 28 | N67: 27
A68: March | B68: 31 | N68: 28
A69: April | B69: 30 | N69: 29
A70: May | B70: 31 | N70: 30
A71: June | B71: 30 | N71: 31
A72: July | B72: 31
A73: August | B73: 31
A74: September | B74: 30
A75: October | B75: 31
A76: November | B76: 30
A77: December | B77: 31

Sheet 80% (hidden)
A1: Rent Subsidy Calculator for Whatcom Homeless Service Center (revised 3/30/16)
A3: Tenant Name/ID Number: | C3: Joe Cool
A5: 1. Household size | C5: 3 | D5: persons
A6: 2. Bedrooms in unit | C6: 2 | D6: bedrooms
A8: 3. Monthly Income: | K8: 2016 Whatcom County Income Limits
B9: Source | D9: Amount | K9: HH Size | L9: Median Income
A10: 1 | B10: TANF | D10: 478 | E10: x 12 = | F10: =D10*12 -> 5736 | K10: 1 | L10: 48930
A11: 2 | E11: x 12 = | F11: =D11*12 -> 0 | K11: 2 | L11: 55920
A12: 3 | E12: x 12 = | F12: =D12*12 -> 0 | K12: 3 | L12: 62910
E13: Total Annual Income all sources: | K13: 4 | L13: 69900
I14: =SUM(F10:F12) -> 5736 | K14: 5 | L14: 75492
A15: 4. 50% of Gross Median Income test: does family's gross income exceed 50% of median income | K15: 6 | L15: 81084
A16: for county? | C16: =I14/(VLOOKUP(C5,K10:L17,2,FALSE)) -> 0.09117787315 | D16: If YES stop here - household does not qualify for assistance. | K16: 7 | L16: 86676
K17: 8 | L17: 92268
A18: 5. Less Deductions:
B19: Dependent deductions ($480 x | E19: 2 | F19: ) | I19: =E19*480 -> 960
B20: Out of pocket childcare expenses (provide documentation)
B21: Elderly deduction (elderly, disabled only) ($400 per household) x
B22: Other required restitution (provide documentation)
G23: TOTAL: | I23: =SUM(I19:I22) -> 960
A24: 6. Calculation of 30% of adjusted income
B25: a. Adjusted Income (Total of monthly income less deductions) | I25: =I14-I23 -> 4776
B26: b. Monthly Adjusted Income (adjusted income divided by 12) | I26: =I25/12 -> 398
B27: c. Equals 80% of adjusted income (monthly adjusted income (6b) times .80) | I27: =SUM(I26*0.8) -> 318.4
A29: 7. Calculation of tenant payment if tenant pays no utilities: | K29: 2016 Whatcom County FMR (100%)
B30: a. Equals tenant payment | I30: =I27 -> 318.4 | K30: Bedrooms | L30: FMR
K31: 0 | L31: 604
A32: 8. Rent Ceiling Check | K32: 1 | L32: 699
B33: a. Contract Rent | I33: 841 | K33: 2 | L33: 910
B34: b. Plus utilities or utility allowance (Actual or Housing Authority Calculation) | I34: 0 | K34: 3 | L34: 1326
B35: c. Equals gross rent | I35: =I33+I34 -> 841 | K35: 4 | L35: 1589
B36: d. Gross rent of | C36: =I35 -> 841 | D36: may not exceed rent standard of | G36: =VLOOKUP(C6,K31:L35,2,FALSE) -> 910
B37: *Rent Standard =100% of FMR for County based on bedroom units.
A39: 9. Calculation of subsidy:
B40: a. Contract Rent | I40: =I33 -> 841
B41: b. Less tenant payment (with utility allowance) | I41: =I30-I34 -> 318.4
B42: c. Equals landlord subsidy | I42: =I40-I41 -> 522.6
A44: 10. Pro-rated amount if move-in NOT on the first day of the month
B46: a. Do you want to pro-rate the first month's rent? | G46: Yes
B48: b. Move-in date | D48: Month | E48: April | F48: Day | G48: 23 | H48: Multiplier | I48: =1-((G48-1)/(VLOOKUP(E48,A66:B77,2,FALSE))) -> 0.2666666667
A50: 11. Summary of program assistance:
B51: a. Tenant payment (line 7c minus utility alownace) | I51: =(IF(G46="Yes",I48*I41,I41)) -> 84.90666667
B52: b. Landlord subsidy (line 8c) | I52: =(IF(G46="Yes",(I48)*I42,I42)) -> 139.36 | N52: 13
B53: c. Security deposit assistance | N53: 14
B54: d. First and last month's rent
B55: e. Credit check assistance
B56: f. Other assistance:
B57: g. Equals total program assistance
A60: Prepared by: | G60: Date:
A62: Yes
A63: No
A66: January | B66: 31
A67: February | B67: 28 | N67: 27
A68: March | B68: 31 | N68: 28
A69: April | B69: 30 | N69: 29
A70: May | B70: 31 | N70: 30
A71: June | B71: 30 | N71: 31
A72: July | B72: 31
A73: August | B73: 31
A74: September | B74: 30
A75: October | B75: 31
A76: November | B76: 30
A77: December | B77: 31

Sheet Instructions
A1: INSTRUCTIONS FOR USING THE RENTAL CALCULATOR TOOL
A2: GENERAL INSTRUCTIONS
A3: 1) Enter information ONLY in fields/cells highlighted in yellow on tabs 1. Rental Calculator and 3. Utility Max Calculator, this will allow data to auto-populate into the grayed out fields.
A4: 2) Fields highlighted in gray or lavender are auto-calculated and cannot be altered.
A5: 3) If you click on a cell and see a formula, immediately exit the cell to avoid overriding.
A6: 4) Formulas are locked and cannot be altered.
A8: RENTAL CALCULATOR INSTRUCTIONS
A9: 1) Start by entering information in Tab 1. Rental Calculator [Note: Step 4, Minimum Tenant Payment for Rent and Utilities is the max rate that a Tenant can pay in rent. This is the total of Tenant Share of Rent plus Utilities.] and complete cells only highlighted in yellow.
A11: 2) Complete the following sections: Step 1: Rental Assistance Calculator for Sacramento, Step 2: Monthly Income [Note: If the income amount is $0 then skip to Step 5: Fair Market Rent Reference], Step 3: Less Annual Deduction, and Step 4: Adjusted Income Calculation for Tenant Payment
A12: 3)Step 4: Adjusted Income Calculation for Total Tenant Payments C. [Note: HUD recommends a 30% threshold of Total Tenant Adjusted Monthly Income. Provider may increase/decrease by hard keying over the percentage with Manager's approval.] Tab 2. Rental Payment Agreement select cell (B18) and choose percentage or provider set amount from dropdown when setting up monthly assistance plan.
A14: 4) Step 7: This area is applicable. If there is prorated move-in/out amounts or one time assistance, please fill in this section. If not, skip to Step 8.
A15: UTILITY MAX CALCULATOR INSTRUCTIONS
A16: UTILITY MAX CALCULATOR INSTRUCTIONS
A17: 1) Enter information on Tab 3. Utility Max Calculator based on unit type/number of bedrooms (i.e., Apartment 0-5 Bdrm vs House, Duplex, Town House 0-5 Bdrm) [NOTE: There is no automated amount if user doesn't enter information in the Utility Calculator. If utilities are not being considered, leave Tab 3 blank]
A18: 2) For all participants, households are only eligible for a utility allowance if all utilities are NOT included in the rent. If all utilities are included, enter 0 for "Utility Allowance."
A19: 3) Additional guidance is embedded directly in each tab.

Sheet 1. Rental Calculator
A1: Rent Assistance Calculator Tool Fill in Yellow Cells
A2: Step 1: Rental Assistance Calculator for Sacramento
A3: Tenant Name and Smart Care Number: | G3: Current Date: | H3: =TODAY() -> 2024-03-14
A4: Agency and Program Name:
A5: Type of Residence:
A6: # of People this Plan Supports in Res.: | F6: =IFERROR("Qualifies for assistance for units "& IF(C6<8,(VLOOKUP(C6,'OCCUPANCY_days in month'!A2:C10,2,FALSE)&" - "&VLOOKUP(C6,'OCCUPANCY_days in month'!A2:C10,3,FALSE)&" Bedrooms*"), "4-6 Bedrooms*"),"") -> 
A7: # Bedrooms in Res (Children under 18 share): | D7: Studios, singles in R+B or SRO enter 0 | F7: =IF(C7>6,"Do not use this form. Use a rent reasonableness method","") ->  | G7: *Rooms subject to funding availability
A8: Zip Code of Residence: | E8: =MATCH(C7,FMRZIP_AMI!B3:G3,0) -> 1 | F8: =MATCH(C8,FMRZIP_AMI!A4:A72, 0) -> 
A9: Step 2: Monthly Income
A10: Name of All People in Household | C10: Age | D10: Income Source | G10: Monthly Pre-Tax Pay* | I10: Yearly Income
G11: *Enter 0 for Minors or Full Time Students who are a dependent of the (co)head of household | H11: 0 | I11: =IF((H11<=0),"$0",H11*12) -> $0
H12: 0 | I12: $0
H13: 0 | I13: $0
H14: 0 | I14: $0
H15: 0 | I15: $0
H16: 0 | I16: $0
H17: 0 | I17: $0
A18: Minors may be listed on one line | D18: =IF(I18="$0","Zero Income, Skip Ahead to Step 5","") -> Zero Income, Skip Ahead to Step 5 | F18: Total Annual Income All Sources: | I18: =IF((SUM(I11:I17)<=0),"$0",SUM(I11:I17)) -> $0
A19: 50% of Gross Median Income test: does family's gross income exceed 50% of median income for county | I19: =IFERROR(I18/(VLOOKUP(C6,FMRZIP_AMI!H5:I12,2,FALSE)),"") -> 
A20: =IF(I19>0.5,"STOP - household does not qualify for assistance","Continue, household qualifies for assistance") -> STOP - household does not qualify for assistance
A21: Step 3: Less Annual Deductions:
B22: a. *Number of dependent deductions | G22: $480 x | H22: 0 | I22: =H22*480 -> 0
B23: b. Monthly out of pocket childcare/child support expenses (provide documentation) | H23: 0 | I23: =H23*12 -> 0
B24: c. Number of elderly or disabled deductions | G24: $400 x | H24: 0 | I24: =400*H24 -> 0
B25: d. Other required monthly restitution (provide documentation) | H25: 0 | I25: =H25*12 -> 0
E26: Total Annual Deductions (capped at income): | I26: =IF(((SUM(I22:I25))>I18),I18,SUM(I22:I25)) -> 0
A27: Step 4: Adjusted Income Calculation for Total Tenant Payment
B28: a. Adjusted Income (Total of annual income less deductions) | I28: =IF(I18="$0","$0.00",I18-I26) -> $0.00
B29: b. Monthly Adjusted Income (adjusted annual income divided by 12) | I29: =I28/12 -> 0
B30: c. Percent (%) of Tenant's adjusted monthly income [HUD guideline, to adjust please see below for Manager Approval] | I30: 0.3
C31: Minimum Tenant Payment for Rent and Utilities | I31: =IF(I30=0,'2. Rental Payment Agreement'!I8,I30*I29) -> 0
A32: Step 5: Fair Market Rent Reference Check
B33: a. Cost for only the Unit's Rent | H33: =IF(I33>3880,"High $ Alert", "") ->  | I33: 0
B34: b: Cost of total utilities that are pre-set by landlord and paid separately from rent | H34: =IF(I34>200,"High $ Alert", "") ->  | I34: 0
B35: c. Utility allowance (use Utility Max Calculator tab for utility costs that are not pre-set by the landlord) | I35: =IF('3. Utility Max Calculator'!J35=20,"$0",'3. Utility Max Calculator'!J35) -> 0
B36: d. Equals Rent plus Utilities: | E36: (should not exceed fair market rent of:) | H36: =IFERROR(INDEX(FMRZIP_AMI!B4:G72,F8,MATCH(C7,FMRZIP_AMI!B3:G3,0)),"zip error") -> zip error | I36: =SUM(I33:I35) -> 0
A37: Step 6: Calculation of Monthly Assistance
B38: a. Max Rent Approved by Agency Supv. | E38: =IF(I38>H36,(SUM(I38-H36)),"") ->  | F38: =IF(I38>H36,"Overage Must be Justified in Tenant Chart","") ->  | I38: 0
B39: b. Tenant Share of Utilities (from Utility Max Calculator) | I39: =IF(I31<=0,"$0",I35+I34) -> $0
B40: c. Tenant Share of Rent | I40: =I31 -> 0
B41: d. Value of the voucher, enter 0 if there is no housing voucher | I41: 0
B42: Maximum Monthly Assistance the Provider Can Pay: | I42: =IF((I38-(I39+I40+I41))>0,(I38-(I39+I40+I41)),"$0") -> $0
A43: Step 7: Additional Housing Financial Assistance (If applicable)
A44: Section 1. Pro-rating the 1st Month
B45: a. Will the Tenant move in on the 1st of the month? | G45: Yes
E46: =IF(G45="no","Select Month and Day","") ->  | G46: =IF(G45="yes","Skip Ahead to Section 2","") -> Skip Ahead to Section 2
B47: b. Move-in date | D47: Month | E47: Choose One | F47: Day | I47: =IF(G47="","",IFERROR(1-((G47-1)/(VLOOKUP(E47,A83:B96,2,FALSE))),"")) -> 
B48: c. Pro-rated Rent and Utility | I48: =IF(OR(G45="Yes",G45=""),"",(IF(G45="No",(I47)*(I38),("")))) -> 
B49: c. Pro-rated Tenant Share of Rent and Utilities | G49: =IF(AND(E47="February",G47>29),"Date Error", IF(AND(E47="April",G47>30),"Date Error", IF(AND(E47="June",G47>30),"Date Error", IF(AND(E47="September",G47>30),"Date Error", IF(AND(E47="November",G47>30),"Date Error",""))))) ->  | I49: =IF(OR(G45="Yes",G45=""),"",(IF(G45="no",I47*(I40+I39),""))) -> 
B50: Maximum Pro-rated 1st Mo. Assistance Provider Can Pay, Less Tenant Payments: | I50: =IFERROR((I48-I49),0) -> 0
A51: Section 2. Pro-rating the last month
B52: a. Will the Tenant move out on the last day of the month? | G52: Yes
E53: =IF(G52="no","Select Month and Day ","") ->  | G53: =IF(G52="yes","Skip Ahead to Section 3",IF(G52="unknown","Skip Ahead to Section 3","")) -> Skip Ahead to Section 3
B54: b. Move-out date | D54: Month | E54: Choose One | F54: Day | H54: Multiplier
B55: c. Pro-rated Rent and Utility | I55: =IF(G52="no",(I38/VLOOKUP(E54,A83:B96,2,FALSE))*(G54),"") -> 
B56: c. Pro-rated Tenant Share of Rent and Utilities | G56: =IF(AND(E54="February",G54>29),"Date Error", IF(AND(E54="April",G54>30),"Date Error", IF(AND(E54="June",G54>30),"Date Error", IF(AND(E54="September",G54>30),"Date Error", IF(AND(E54="November",G54>30),"Date Error",""))))) ->  | I56: =IFERROR(IF(G52="no",((I39+I40)/VLOOKUP(E54,A83:B96,2,FALSE))*(G54),""),0) -> 
B57: Maximum Pro-rated Last Mo. Assistance Contractor Can Pay, Less Tenant Payments: | I57: =IFERROR((I55+I56),0) -> 0
A58: Section 3. Additional housing financial assistance:
B59: a. Security deposit assistance | H59: =IF(I59>2000,"High $ Alert", "") ->  | I59: 0
B60: b. 1st & last month's rent (if not prorated above) | E60: =IF(I60>0,IF((AND(G52="No", G45="No")),"1st & last months' rent were prorated, enter 0",""),"") ->  | H60: =IF(I60>I38*2,"High $ Alert", "") ->  | I60: 0
B61: c. One time over due housing assistance payments | H61: =IF(I61>1000,"High $ Alert", "") ->  | I61: 0
B62: d. Other assistance: | C62: List: | I62: 0
B63: e. Maximum initial and one-time financial assistance Contractor can pay: | I63: =I50+I57+I59+I60+I61+I62 -> 0
A64: =IF((I63>5000),"Prior Written County Approval Required","") -> 
A65: Step 8: Tenant Housing Plan Duration, Frequency of Assistance and Total
A66: a. Duration of Rental Assistance in this Housing Plan (mos) | D66: Move in date: | F66: Housing Plan End Date: | XFC66: mar | XFD66: =I39 -> $0
A67: b. Total # of months of full rent (Do not include prorated months) | F67: =IF(H66>E66+366, "Rental assistance may not exceed 12 mos","") ->  | XFC67: apr | XFD67: =13*XFC39 -> 0
A68: c. Total Ongoing Monthly Rental Assistance for Duration of Housing Plan | H68: Up to: | I68: =(E67*I42) -> 0 | XFC68: total | XFD68: =SUM(XFD60:XFD67) -> 0
A69: =IF((I68>5000),"Prior Written County Approval Required","") ->  | XFC69: minus pro | XFD69: =XFD68-XFD60 -> 0
A70: Total Assistance in This Plan up to*: | H70: =I68+I59+I60+I61+I62+I50+I57 -> 0
A72: *The stated benefits are accurate as of now but are subject to change due to any modifications in financial conditions.
A73: Justification for any changes from maximums:
A74: Staff Signature: | G74: Date:
A76: Supervisor Sig.: | H76: Revised 2/5/2024
A77: *No specific classification required
A78: Choose One | D78: Choose One
A79: Yes | D79: Apartment
A80: No | D80: Single Room Occupancy (SRO)
A81: Unknown | D81: Duplex
D82: House
D83: Room and Board
A84: Choose One | D84: Studio
A85: January | B85: 31 | D85: Co-op
A86: February | B86: 28
A87: March | B87: 31
A88: April | B88: 30
A89: May | B89: 31
A90: June | B90: 30
A91: July | B91: 31
A92: August | B92: 31
A93: September | B93: 30
A94: October | B94: 31
A95: November | B95: 30
A96: December | B96: 31

Sheet 2. Rental Payment Agreement
A1: Rent Assistance Calculator Tool Fill in Yellow Cells Hidden areas will activate as the user enters information into yellow cells
A2: Area I: Rental Assistance Calculator for Sacramento
A3: Tenant Name & Avatar No.: | C3: ='1. Rental Calculator'!C3:F3 -> 0 | H3: Current Date: | I3: ='1. Rental Calculator'!H3 -> 2024-03-14 | J3: ='1. Rental Calculator'!F6 -> 
A4: Agency and Program: | C4: ='1. Rental Calculator'!C4:H4 -> 0
A5: # of People this Plan Supports in Residence.: | E5: ='1. Rental Calculator'!C6 -> 0 | G5: # Bedrooms in Res (Children under 18 share): | I5: ='1. Rental Calculator'!C7 -> 0
A6: Percents of Adjusted Yearly Income | J6: *Tenant share should not be less than 30% of their adjusted annual income.
A7: 0.3 | B7: 0.4 | C7: 0.5 | D7: 0.6 | E7: 0.7 | F7: 0.8 | G7: 0.9 | H7: 1 | I7: Minimum Tenant Payment for Rent and Utilities
A8: ='1. Rental Calculator'!$I$29*A7 -> 0 | B8: ='1. Rental Calculator'!$I$29*B7 -> 0 | C8: ='1. Rental Calculator'!$I$29*C7 -> 0 | D8: ='1. Rental Calculator'!$I$29*D7 -> 0 | E8: ='1. Rental Calculator'!$I$29*E7 -> 0 | F8: ='1. Rental Calculator'!$I$29*F7 -> 0 | G8: ='1. Rental Calculator'!$I$29*G7 -> 0 | H8: ='1. Rental Calculator'!$I$29*H7 -> 0
E11: e28
O12: Choose One
A13: PERCENTAGE INCREASE or dollar increase | O13: Percentage
A14: what percentage or what dollar | O14: Provider set amount
A15: how many months | G15: double check percentage
A17: Monthly Titration Plan
A18: Select Titration Plan: | B18: Percentage | D18: Flat Dollar Amount: | F18: Monthly Percent | G18: 0.1 | M18: conditional formattingd18 and e 18
A19: Month 1 | B19: Month 2 | C19: Month 3 | D19: Month 4 | E19: Month 5 | F19: Month 6 | G19: Month 7 | H19: Month 8 | I19: Month 9 | J19: Month 10 | K19: Month 11 | L19: Month 12
A20: ='1. Rental Calculator'!I42 -> $0 | B20: =IF(E18<=0,"",$E$18+A20) ->  | C20: =IF($E$18<=0,"",$E$18+B20) ->  | D20: =IF($E$18<=0,"",$E$18+C20) -> 
B21: =A23*G18 -> 0
A22: Month 1 | B22: Month 2 | C22: Month 3 | D22: Month 4 | E22: Month 5 | F22: Month 6 | G22: Month 7 | H22: Month 8 | I22: Month 9 | J22: Month 10 | K22: Month 11 | L22: Month 12
A23: ='1. Rental Calculator'!I31 -> 0 | B23: =A23+$B$21 -> 0 | C23: =B23+$B$21 -> 0 | D23: 0 | E23: 0 | F23: 0 | G23: 0 | H23: 0 | I23: 0 | J23: 0 | K23: 0 | L23: 0
A25: Adjusted Income for Tenant Payment
A26: Monthly Adjusted Income | C26: ='1. Rental Calculator'!I29 -> 0 | E26: % or Provider Set Amount | G26: ='1. Rental Calculator'!I30 -> 0.3 | H26: Minimum Tenant Payment for Rent and Utilities | L26: ='1. Rental Calculator'!I31 -> 0
A27: Fair Market Rent
A28: Cost for only the Unit's Rent: | D28: ='1. Rental Calculator'!I33 -> 0 | E28: Equals Rent plus Utilities: | H28: ='1. Rental Calculator'!I36 -> 0 | I28: should not exceed fair market rent of | L28: ='1. Rental Calculator'!H36 -> zip error
A29: Monthly Assistance
A30: Maximum Monthly Assistance the Contractor Can Pay: | L30: ='1. Rental Calculator'!I42 -> $0
A31: Pro-Rated Monthly Assistance
A32: Pro-rated Tenant Share of Rent and Utilities | E32: ='1. Rental Calculator'!I49 ->  | F32: Max. Pro-rated 1st Mo. Contractor Can Pay, Less Tenant Payments: | L32: ='1. Rental Calculator'!I50 -> 0
A33: Pro-rated Tenant Share of Rent and Utilities | E33: ='1. Rental Calculator'!I56 ->  | F33: Max. Pro-rated Last Mo. Contractor Can Pay, Less Tenant Payments: | L33: ='1. Rental Calculator'!I57 -> 0
A34: Maximum initial and one-time financial assistance Contractor can pay: | L34: ='1. Rental Calculator'!I63 -> 0
A35: Tenant Housing Plan Duration, Frequency of Assistance and Total
A36: Move in: | B36: ='1. Rental Calculator'!E66 -> 00:00:00 | C36: Housing Plan End Date: | E36: ='1. Rental Calculator'!H66 -> 00:00:00 | F36: Total # of months of full rent (Do not include prorated months)
A37: Total Ongoing Monthly Assistance for Duration of Housing Plan (Up To): | G37: ='1. Rental Calculator'!I68 -> 0 | H37: Total Assistance in This Plan (Up To): | L37: ='1. Rental Calculator'!H70 -> 0
A38: Revised 8/18/2022 | C38: *The stated benefits are accurate as of now but are subject to change due to any modifications in financial conditions.

Sheet FMRZIP_AMI (hidden)
A1: Based on SHRA/HUD 2024 Payment Standards
B2: Household Unit Size | L2: Payment Standards Effective December 1, 2023
A3: ZIP Code | B3: 0 | C3: 1 | D3: 2 | E3: 3 | F3: 4 | G3: 5 | H3: 2023 Sacramento Median Family Inc | L3: Zip Code | M3: Studio | N3: One Bedroom | O3: Two Bedroom | P3: Three Bedroom | Q3: Four Bedroom | R3: Fİve Bedroom
A4: 95608 | B4: =M4+(M4*10%) -> 1742.4 | C4: =N4+(N4*10%) -> 1875.5 | D4: 2335.3 | E4: 3254.9 | F4: 3738.9 | G4: 4298.8 | H4: HH Size | I4: Median Income | L4: 95608 | M4: 1584 | N4: 1705 | O4: 2123 | P4: 2959 | Q4: 3399 | R4: 3908
A5: 95609 | B5: =M5+(M5*10%) -> 1661 | C5: =N5+(N5*10%) -> 1793 | D5: =O5+(O5*10%) -> 2233 | E5: =P5+(P5*10%) -> 3113 | F5: =Q5+(Q5*10%) -> 3575 | G5: =R5+(R5*10%) -> 3932.5 | H5: 1 | I5: 79750 | L5: 95609 | M5: 1510 | N5: 1630 | O5: 2030 | P5: 2830 | Q5: 3250 | R5: =Q5+(Q5*10%) -> 3575
A6: 95610 | B6: 1875.5 | C6: 2020.7 | D6: 2516.8 | E6: 3509 | F6: 4029.3 | G6: 4632.1 | H6: 2 | I6: 91100 | L6: 95610 | M6: 1705 | N6: 1837 | O6: 2288 | P6: 3190 | Q6: 3663 | R6: 4211
A7: 95611 | B7: 1661 | C7: 1793 | D7: 2233 | E7: 3113 | F7: 3575 | G7: 3932.5 | H7: 3 | I7: 102500 | L7: 95611 | M7: 1510 | N7: 1630 | O7: 2030 | P7: 2830 | Q7: 3250 | R7: =Q7+(Q7*10%) -> 3575
A8: 95615 | B8: 1173.7 | C8: 1270.5 | D8: 1573 | E8: 2190.1 | F8: 2516.8 | G8: 2894.1 | H8: 4 | I8: 113900 | L8: 95615 | M8: 1067 | N8: 1155 | O8: 1430 | P8: 1991 | Q8: 2288 | R8: 2631
A9: 95621 | B9: 1778.7 | C9: 1923.9 | D9: 2395.8 | E9: 3339.6 | F9: 3835.7 | G9: 4409.9 | H9: 5 | I9: 123000 | L9: 95621 | M9: 1617 | N9: 1749 | O9: 2178 | P9: 3036 | Q9: 3487 | R9: 4009
A10: 95624 | B10: 2153.8 | C10: 2323.2 | D10: 2891.9 | E10: 4029.3 | F10: 4634.3 | G10: 5328.4 | H10: 6 | I10: 132100 | L10: 95624 | M10: 1958 | N10: 2112 | O10: 2629 | P10: 3663 | Q10: 4213 | R10: 4844
A11: 95626 | B11: 2008.6 | C11: 2165.9 | D11: 2698.3 | E11: 3751 | F11: 4319.7 | G11: 4966.5 | H11: 7 | I11: 141250 | L11: 95626 | M11: 1826 | N11: 1969 | O11: 2453 | P11: 3410 | Q11: 3927 | R11: 4515
A12: 95628 | B12: 1911.8 | C12: 2057 | D12: 2565.2 | E12: 3569.5 | F12: 4114 | G12: 4741 | H12: 8 | I12: 150350 | L12: 95628 | M12: 1738 | N12: 1870 | O12: 2332 | P12: 3245 | Q12: 3740 | R12: 4310
A13: 95630 | B13: 2420 | C13: 2601.5 | D13: 3242.8 | E13: 4513.3 | F13: 5203 | G13: 5982.9 | H13: 9 | I13: =I12+9150 -> 159500 | L13: 95630 | M13: 2200 | N13: 2365 | O13: 2948 | P13: 4103 | Q13: 4730 | R13: 5439
A14: 95632 | B14: 1706.1 | C14: 1839.2 | D14: 2286.9 | E14: 3182.3 | F14: 3666.3 | G14: 4215.2 | H14: 10 | I14: =I13+9150 -> 168650 | L14: 95632 | M14: 1551 | N14: 1672 | O14: 2079 | P14: 2893 | Q14: 3333 | R14: 3832
A15: 95638 | B15: 1875.5 | C15: 2020.7 | D15: 2516.8 | E15: 3509 | F15: 4029.3 | G15: 4632.1 | H15: 11 | I15: =I14+9150 -> 177800 | L15: 95638 | M15: 1705 | N15: 1837 | O15: 2288 | P15: 3190 | Q15: 3663 | R15: 4211
A16: 95639 | B16: 2134 | C16: 2299 | D16: 2860 | E16: 3982 | F16: 4587 | G16: 5045.7 | H16: https://www.hcd.ca.gov/sites/default/files/docs/grants-and-funding/income-limits-2023.pdf | L16: 95639 | M16: 1940 | N16: 2090 | O16: 2600 | P16: 3620 | Q16: 4170 | R16: =Q16+(Q16*10%) -> 4587
A17: 95641 | B17: 1197.9 | C17: 1294.7 | D17: 1609.3 | E17: 2238.5 | F17: 2577.3 | G17: 2962.3 | L17: 95641 | M17: 1089 | N17: 1177 | O17: 1463 | P17: 2035 | Q17: 2343 | R17: 2693
A18: 95652 | B18: 1923.9 | C18: 2069.1 | D18: 2577.3 | E18: 3581.6 | F18: 4126.1 | G18: 48744.3 | L18: 95652 | M18: 1749 | N18: 1881 | O18: 2343 | P18: 3256 | Q18: 3751 | R18: 44313
A19: 95655 | B19: 1681.9 | C19: 1815 | D19: 2262.7 | E19: 3146 | F19: 3630 | G19: 4174.5 | L19: 95660 | M19: 1529 | N19: 1650 | O19: 2057 | P19: 2860 | Q19: 3300 | R19: 3795
A20: 95660 | B20: 2613.6 | C20: 2819.3 | D20: 3509 | E20: 4888.4 | F20: 5626.5 | G20: 6469.1 | L20: 95655 | M20: 2376 | N20: 2563 | O20: 3190 | P20: 4444 | Q20: 5115 | R20: 5881
A21: 95662 | B21: 2057 | C21: 2226.4 | D21: 2770.9 | E21: 3859.9 | F21: 4440.7 | G21: 5106.2 | L21: 95662 | M21: 1870 | N21: 2024 | O21: 2519 | P21: 3509 | Q21: 4037 | R21: 4642
A22: 95670 | B22: 1657.7 | C22: 1790.8 | D22: 2226.4 | E22: 3097.6 | F22: 3569.5 | G22: 4104.1 | L22: 95670 | M22: 1507 | N22: 1628 | O22: 2024 | P22: 2816 | Q22: 3245 | R22: 3731
A23: 95671 | B23: 1661 | C23: 1793 | D23: 2233 | E23: 3113 | F23: 3575 | G23: 3932.5 | L23: 95671 | M23: 1510 | N23: 1630 | O23: 2030 | P23: 2830 | Q23: 3250 | R23: =Q23+(Q23*10%) -> 3575
A24: 95673 | B24: 1827.1 | C24: 1972.3 | D24: 2456.3 | E24: 3424.3 | F24: 3932.5 | G24: 4521 | L24: 95673 | M24: 1661 | N24: 1793 | O24: 2233 | P24: 3113 | Q24: 3575 | R24: 4110
A25: 95680 | B25: 1661 | C25: 1793 | D25: 2233 | E25: 3113 | F25: 3575 | G25: 3932.5 | L25: 95680 | M25: 1510 | N25: 1630 | O25: 2030 | P25: 2830 | Q25: 3250 | R25: =Q25+(Q25*10%) -> 3575
A26: 95683 | B26: 2807.2 | C26: 3025 | D26: 3763.1 | E26: 5239.3 | F26: 6037.9 | G26: 6942.1 | L26: 95683 | M26: 2552 | N26: 2750 | O26: 3421 | P26: 4763 | Q26: 5489 | R26: 6311
A27: 95690 | B27: 1355.2 | C27: 1464.1 | D27: 1827.1 | E27: 2541 | F27: 2928.2 | G27: 3367.1 | L27: 95690 | M27: 1232 | N27: 1331 | O27: 1661 | P27: 2310 | Q27: 2662 | R27: 3061
A28: 95693 | B28: 2020.7 | C28: 2178 | D28: 2710.4 | E28: 3775.2 | F28: 4343.9 | G28: 4994 | L28: 95693 | M28: 1837 | N28: 1980 | O28: 2464 | P28: 3432 | Q28: 3949 | R28: 4540
A29: 95741 | B29: 166.1 | C29: 1793 | D29: 2233 | E29: 3113 | F29: 3575 | G29: 3932.5 | L29: 95741 | M29: 151 | N29: 1630 | O29: 2030 | P29: 2830 | Q29: 3250 | R29: =Q29+(Q29*10%) -> 3575
A30: 95742 | B30: 2807.2 | C30: 3025 | D30: 3763.1 | E30: 5239.3 | F30: 6037.9 | G30: 6942.1 | L30: 95742 | M30: 2552 | N30: 2750 | O30: 3421 | P30: 4763 | Q30: 5489 | R30: 6311
A31: 95757 | B31: 2746.7 | C31: 2964.5 | D31: 3690.5 | E31: 5142.5 | F31: 5916.9 | G31: 6803.5 | L31: 95757 | M31: 2497 | N31: 2695 | O31: 3355 | P31: 4675 | Q31: 5379 | R31: 6185
A32: 95758 | B32: 1923.9 | C32: 10881.2 | D32: 2589.4 | E32: 3605.8 | F32: 4150.3 | G32: 4771.8 | L32: 95758 | M32: 1749 | N32: 9892 | O32: 2354 | P32: 3278 | Q32: 3773 | R32: 4338
A33: 95759 | B33: 1661 | C33: 1793 | D33: 2233 | E33: 3113 | F33: 3575 | G33: 3932.5 | L33: 95759 | M33: 1510 | N33: 1630 | O33: 2030 | P33: 2830 | Q33: 3250 | R33: =Q33+(Q33*10%) -> 3575
A34: 95763 | B34: 1661 | C34: 1793 | D34: 2233 | E34: 3113 | F34: 3575 | G34: 3932.5 | L34: 95763 | M34: 1510 | N34: 1630 | O34: 2030 | P34: 2830 | Q34: 3250 | R34: 3575
A35: 95811 | B35: 1972.3 | C35: 2129.6 | D35: 2649.9 | E35: 3690.5 | F35: 4242.7 | G35: 4882.9 | L35: 95811 | M35: 1793 | N35: 1936 | O35: 2409 | P35: 3355 | Q35: 3857 | R35: 4439
A36: 95812 | B36: 1661 | C36: 1793 | D36: 2233 | E36: 3113 | F36: 3575 | G36: 3932.5 | L36: 95812 | M36: 1510 | N36: 1630 | O36: 2030 | P36: 2830 | Q36: 3250 | R36: =Q36+(Q36*10%) -> 3575
A37: 95813 | B37: 1661 | C37: 1793 | D37: 2233 | E37: 3113 | F37: 3575 | G37: 3932.5 | L37: 95813 | M37: 1510 | N37: 1630 | O37: 2030 | P37: 2830 | Q37: 3250 | R37: 3575
A38: 95814 | B38: 1706.1 | C38: 1851.3 | D38: 2299 | E38: 3194.4 | F38: 3690.5 | G38: 4242.7 | L38: 95814 | M38: 1551 | N38: 1683 | O38: 2090 | P38: 2904 | Q38: 3355 | R38: 3857
A39: 95815 | B39: 1488.3 | C39: 1609.3 | D39: 1996.5 | E39: 2783 | F39: 3194.4 | G39: 3672.9 | L39: 95815 | M39: 1353 | N39: 1463 | O39: 1815 | P39: 2530 | Q39: 2904 | R39: 3339
A40: 95816 | B40: 2178 | C40: 2359.5 | D40: 2928.2 | E40: 4077.7 | F40: 4694.8 | G40: 5398.8 | L40: 95816 | M40: 1980 | N40: 2145 | O40: 2662 | P40: 3707 | Q40: 4268 | R40: 4908
A41: 95817 | B41: 1621.4 | C41: 1754.5 | D41: 2178 | E41: 3037.1 | F41: 3496.9 | G41: 4020.5 | L41: 95817 | M41: 1474 | N41: 1595 | O41: 1980 | P41: 2761 | Q41: 3179 | R41: 3655
A42: 95818 | B42: 1960.2 | C42: 2117.5 | D42: 2637.8 | E42: 3666.3 | F42: 4222.9 | G42: 4855.4 | L42: 95818 | M42: 1782 | N42: 1925 | O42: 2398 | P42: 3333 | Q42: 3839 | R42: 4414
A43: 95819 | B43: 2238.5 | C43: 2420 | D43: 3012.9 | E43: 4198.7 | F43: 4827.9 | G43: 5550.6 | L43: 95819 | M43: 2035 | N43: 2200 | O43: 2739 | P43: 3817 | Q43: 4389 | R43: 5046
A44: 95820 | B44: 1645.6 | C44: 1766.6 | D44: 2202.2 | E44: 3061.3 | F44: 3533.2 | G44: 4062.3 | L44: 95820 | M44: 1496 | N44: 1606 | O44: 2002 | P44: 2783 | Q44: 3212 | R44: 3693
A45: 95821 | B45: 1621.4 | C45: 1754.5 | D45: 2178 | E45: 3037.1 | F45: 3496.9 | G45: 4020.5 | L45: 95821 | M45: 1474 | N45: 1595 | O45: 1980 | P45: 2761 | Q45: 3179 | R45: 3655
A46: 95822 | B46: 1706.1 | C46: 1851.3 | D46: 2299 | E46: 3194.4 | F46: 3690.5 | G46: 4242.7 | L46: 95822 | M46: 1551 | N46: 1683 | O46: 2090 | P46: 2904 | Q46: 3355 | R46: 3857
A47: 95823 | B47: 1609.3 | C47: 1742.4 | D47: 2165.9 | E47: 3012.9 | F47: 3472.7 | G47: 3993 | L47: 95823 | M47: 1463 | N47: 1584 | O47: 1969 | P47: 2739 | Q47: 3157 | R47: 3630
A48: 95824 | B48: 1452 | C48: 1560.9 | D48: 1948.1 | E48: 2710.4 | F48: 3121.8 | G48: 3589.3 | L48: 95824 | M48: 1320 | N48: 1419 | O48: 1771 | P48: 2464 | Q48: 2838 | R48: 3263
A49: 95825 | B49: 1742.4 | C49: 1887.6 | D49: 2347.4 | E49: 3267 | F49: 3763.1 | G49: 4326.3 | L49: 95825 | M49: 1584 | N49: 1716 | O49: 2134 | P49: 2970 | Q49: 3421 | R49: 3933
A50: 95826 | B50: 1681.9 | C50: 1815 | D50: 2262.7 | E50: 3146 | F50: 3630 | G50: 4174.5 | L50: 95826 | M50: 1529 | N50: 1650 | O50: 2057 | P50: 2860 | Q50: 3300 | R50: 3795
A51: 95827 | B51: 1875.5 | C51: 2020.7 | D51: 2516.8 | E51: 3509 | F51: 4029.3 | G51: 4632.1 | L51: 95827 | M51: 1705 | N51: 1837 | O51: 2288 | P51: 3190 | Q51: 3663 | R51: 4211
A52: 95828 | B52: 1730.3 | C52: 1863.4 | D52: 2323.2 | E52: 3230.7 | F52: 3726.8 | G52: 4285.6 | L52: 95828 | M52: 1573 | N52: 1694 | O52: 2112 | P52: 2937 | Q52: 3388 | R52: 3896
A53: 95829 | B53: 2274.8 | C53: 2456.3 | D53: 3061.3 | E53: 4259.2 | F53: 4912.6 | G53: 5648.5 | L53: 95829 | M53: 2068 | N53: 2233 | O53: 2783 | P53: 3872 | Q53: 4466 | R53: 5135
A54: 95830 | B54: 2299 | C54: 2480.5 | D54: 3097.6 | E54: 4307.6 | F54: 4961 | G54: 5704.6 | L54: 95830 | M54: 2090 | N54: 2255 | O54: 2816 | P54: 3916 | Q54: 4510 | R54: 5186
A55: 95831 | B55: 2069.1 | C55: 2238.5 | D55: 2783 | E55: 3872 | F55: 4464.9 | G55: 5133.7 | L55: 95831 | M55: 1881 | N55: 2035 | O55: 2530 | P55: 3520 | Q55: 4059 | R55: 4667
A56: 95832 | B56: 2093.3 | C56: 2262.7 | D56: 2819.3 | E56: 3920.4 | F56: 4513.3 | G56: 5188.7 | L56: 95832 | M56: 1903 | N56: 2057 | O56: 2563 | P56: 3564 | Q56: 4103 | R56: 4717
A57: 95833 | B57: 2032.8 | C57: 2202.2 | D57: 2734.6 | E57: 3811.5 | F57: 4380.2 | G57: 5036.9 | L57: 95833 | M57: 1848 | N57: 2002 | O57: 2486 | P57: 3465 | Q57: 3982 | R57: 4579
A58: 95834 | B58: 1923.9 | C58: 2081.2 | D58: 2589.4 | E58: 3605.8 | F58: 4150.3 | G58: 4771.8 | L58: 95834 | M58: 1749 | N58: 1892 | O58: 2354 | P58: 3278 | Q58: 3773 | R58: 4338
A59: 95835 | B59: 2456.3 | C59: 2649.9 | D59: 3291.2 | E59: 4585.9 | F59: 5275.6 | G59: 6066.5 | L59: 95835 | M59: 2233 | N59: 2409 | O59: 2992 | P59: 4169 | Q59: 4796 | R59: 5515
A60: 95836 | B60: 2456.3 | C60: 2649.9 | D60: 3291.2 | E60: 4585.9 | F60: 5275.6 | G60: 6066.5 | L60: 95836 | M60: 2233 | N60: 2409 | O60: 2992 | P60: 4169 | Q60: 4796 | R60: 5515
A61: 95837 | B61: 1706.1 | C61: 1754.5 | D61: 2250.6 | E61: 3121.8 | F61: 3654.2 | G61: 4202 | L61: 95837 | M61: 1551 | N61: 1595 | O61: 2046 | P61: 2838 | Q61: 3322 | R61: 3820
A62: 95838 | B62: 1560.9 | C62: 1681.9 | D62: 2093.3 | E62: 2916.1 | F62: 3351.7 | G62: 3853.3 | L62: 95838 | M62: 1419 | N62: 1529 | O62: 1903 | P62: 2651 | Q62: 3047 | R62: 3503
A63: 95841 | B63: 1657.7 | C63: 1790.8 | D63: 2226.4 | E63: 3097.6 | F63: 3767.5 | G63: 4104.1 | L63: 95841 | M63: 1507 | N63: 1628 | O63: 2024 | P63: 2816 | Q63: 3425 | R63: 3731
A64: 95842 | B64: 1706.1 | C64: 1839.2 | D64: 2286.9 | E64: 3182.3 | F64: 3666.3 | G64: 4215.2 | L64: 95842 | M64: 1551 | N64: 1672 | O64: 2079 | P64: 2893 | Q64: 3333 | R64: 3832
A65: 95843 | B65: 1960.2 | C65: 2117.5 | D65: 2637.8 | E65: 3666.3 | F65: 4222.9 | G65: 4855.4 | L65: 95843 | M65: 1782 | N65: 1925 | O65: 2398 | P65: 3333 | Q65: 3839 | R65: 4414
A66: 95851 | B66: 1661 | C66: 1793 | D66: 2233 | E66: 3113 | F66: 3575 | G66: 3932.5 | L66: 95851 | M66: 1510 | N66: 1630 | O66: 2030 | P66: 2830 | Q66: 3250 | R66: =Q66+(Q66*10%) -> 3575
A67: 95852 | B67: 1661 | C67: 1793 | D67: 2233 | E67: 3113 | F67: 3575 | G67: 3932.5 | L67: 95852 | M67: 1510 | N67: 1630 | O67: 2030 | P67: 2830 | Q67: 3250 | R67: 3575
A68: 95853 | B68: 1661 | C68: 1793 | D68: 2233 | E68: 3113 | F68: 3575 | G68: 3932.5 | L68: 95856 | M68: 1510 | N68: 1630 | O68: 2030 | P68: 2830 | Q68: 3250 | R68: 3575
A69: 95860 | B69: =M69+(M69*10%) -> 1661 | C69: =N69+(N69*10%) -> 1793 | D69: =O69+(O69*10%) -> 2233 | E69: =P69+(P69*10%) -> 3113 | F69: =Q69+(Q69*10%) -> 3575 | G69: =R69+(R69*10%) -> 3932.5 | L69: 95860 | M69: 1510 | N69: 1630 | O69: 2030 | P69: 2830 | Q69: 3250 | R69: 3575
A70: 95864 | B70: 1996.5 | C70: 2153.8 | D70: 2674.1 | E70: 3726.8 | F70: 4283.4 | G70: 4925.8 | L70: 95864 | M70: 1815 | N70: 1958 | O70: 2431 | P70: 3388 | Q70: 3894 | R70: 4478
A71: 95865 | B71: 1661 | C71: 1793 | D71: 2233 | E71: 3113 | F71: 3575 | G71: 3932.5 | L71: 95865 | M71: 1510 | N71: 1630 | O71: 2030 | P71: 2830 | Q71: 3250 | R71: =Q71+(Q71*10%) -> 3575
A72: 95866 | B72: 1661 | C72: 1793 | D72: 2233 | E72: 3113 | F72: 3575 | G72: 3932.5 | L72: 95866 | M72: 1510 | N72: 1630 | O72: 2030 | P72: 2830 | Q72: 3250 | R72: 3575
L73: Revised 2/5/2024
A74: https://www.huduser.gov/portal/datasets/fmr/fmrs/FY2024_code/2024summary_sa.odn

Sheet 3. Utility Max Calculator
B1: Revised 2/5/24 | AN1: *Client share should not be less than 30% of their adjusted annual income.
B2: Apartment (# of rooms)* | C2: 0 | D2: 1 | E2: 2 | F2: 3 | G2: 4 | H2: 5 | K2: House, Duplex, Town House (# of Rooms)* | L2: 0 | M2: 1 | N2: 2 | O2: 3 | P2: 4 | Q2: 5
B3: Heating | K3: Heating | AN3: 0.3
A4: Choose One: | B4: Natural Gas | C4: 21 | D4: 24 | E4: 27 | F4: 31 | G4: 34 | H4: 37 | J4: Choose One: | K4: Natural Gas | L4: 31 | M4: 36 | N4: 40 | O4: 45 | P4: 50 | Q4: 54 | AN4: ='1. Rental Calculator'!$I$29*AN3 -> 0
B5: Electric | C5: 11 | D5: 13 | E5: 16 | F5: 19 | G5: 23 | H5: 26 | K5: Electric | L5: 23 | M5: 26 | N5: 30 | O5: 34 | P5: 38 | Q5: 42
B6: Stove Type Cooking | K6: Cooking
A7: Choose One: | B7: Natural Gas | C7: 5 | D7: 5 | E7: 8 | F7: 10 | G7: 13 | H7: 15 | J7: Choose One: | K7: Natural Gas | L7: 5 | M7: 5 | N7: 8 | O7: 10 | P7: 13 | Q7: 15
B8: Electric | C8: 6 | D8: 7 | E8: 10 | F8: 13 | G8: 16 | H8: 19 | K8: Electric | L8: 6 | M8: 7 | N8: 10 | O8: 13 | P8: 16 | Q8: 19 | AN8: Month 1
B9: Electric | K9: Electric | AN9: =AN4 -> 0
B10: Other Electric (Lights/Appliances) | C10: 22 | D10: 26 | E10: 36 | F10: 46 | G10: 56 | H10: 66 | K10: Other Electric (Lights/Appliances) | L10: 32 | M10: 38 | N10: 52 | O10: 67 | P10: 82 | Q10: 96
B11: Air Conditioning | K11: Cooling
B12: Air Conditioning | C12: 11 | D12: 13 | E12: 18 | F12: 23 | G12: 28 | H12: 33 | K12: Air Conditioning | L12: 8 | M12: 10 | N12: 22 | O12: 35 | P12: 47 | Q12: 60
B13: Water Heating | K13: Water Heating
A14: Choose One: | B14: Natural Gas | C14: 10 | D14: 11 | E14: 16 | F14: 21 | G14: 28 | H14: 33 | J14: Choose One: | K14: Natural Gas | L14: 13 | M14: 15 | N14: 21 | O14: 28 | P14: 34 | Q14: 41
B15: Electric | C15: 13 | D15: 16 | E15: 20 | F15: 24 | G15: 29 | H15: 33 | K15: Electric | L15: 17 | M15: 20 | N15: 25 | O15: 30 | P15: 36 | Q15: 41
B16: Water, Sewer, Trash Collection | K16: Water, Sewer, Trash Collection
B17: Water (Avg) | C17: 42 | D17: 42 | E17: 44 | F17: 47 | G17: 49 | H17: 51 | K17: Water (Avg) | L17: 42 | M17: 42 | N17: 44 | O17: 47 | P17: 49 | Q17: 51
B18: Sewer | C18: 18 | D18: 18 | E18: 18 | F18: 18 | G18: 18 | H18: 18 | K18: Sewer | L18: 18 | M18: 18 | N18: 18 | O18: 18 | P18: 18 | Q18: 18
B19: Trash Collection | C19: 40 | D19: 40 | E19: 40 | F19: 40 | G19: 40 | H19: 40 | K19: Trash Collection | L19: 40 | M19: 40 | N19: 40 | O19: 40 | P19: 40 | Q19: 40
B20: Electric Infrastructure Charge | K20: Electric Infrastructure Charge
B21: Electric Infrastructure Charge | C21: 23 | D21: 23 | E21: 23 | F21: 23 | G21: 23 | H21: 23 | K21: Electric Infrastructure Charge | L21: 23 | M21: 23 | N21: 23 | O21: 23 | P21: 23 | Q21: 23
B23: Generally, room and boards, co-ops and SROs have utilities included. If not, choose apartment | F23: Utility Allowances
G24: Type of Residence: | J24: ='1. Rental Calculator'!C5 -> 0
G25: # of Bedrooms: | J25: ='1. Rental Calculator'!C7 -> 0
G26: Heating: | J26: 0
G27: Cooking: | J27: 0
G28: Electric | J28: 0
G29: Air Conditioning | J29: 0
G30: Water Heating: | J30: 0
G31: Water: | J31: 0
G32: Sewer | J32: 0
G33: Trash | J33: 0
G34: Electric Surcharge | J34: 0
G35: Utility Allowance Grand Total : | J35: =SUM(J26:J34) -> 0
K37: =IF((J35>=341),"High Dollar Alert","") -> 

Sheet 4. Client Copy
A1: Rent Assistance
A2: Rental Assistance
A3: Tenant Name and Avatar Number: | C3: ='1. Rental Calculator'!C3:F3 -> 0 | G3: Current Date: | H3: ='1. Rental Calculator'!H3 -> 2024-03-14
A4: Agency and Program Name: | C4: ='1. Rental Calculator'!C4:H4 -> 0
A5: Type of Residence: | C5: House
A6: # of People this Plan Supports in Res.: | C6: ='1. Rental Calculator'!C6 -> 0
A7: # Bedrooms in Res (Children under 18 share): | C7: 4 | D7: Studios, singles in R+B or SRO enter 0 | F7: =IF(C7>6,"Do not use this form. Use a rent reasonableness method","") -> 
A8: Zip Code of Residence: | C8: 95823 | E8: =MATCH(C7,FMRZIP_AMI!B3:G3,0) -> 5 | F8: =MATCH(C8,FMRZIP_AMI!A4:A72, 0) -> 44 | G8: =INDEX(FMRZIP_AMI!A4:G72,F8,MATCH(C7,FMRZIP_AMI!B3:G3,0)) -> 3012.9 | H8: =IFERROR("Eligible for Units with "& IF(C6<8,(VLOOKUP(C6,'OCCUPANCY_days in month'!A2:C10,2,FALSE)&" - "&VLOOKUP(C6,'OCCUPANCY_days in month'!A2:C10,3,FALSE)&" Bedrooms"), "4 Bedrooms"),"") -> 
A9: Income & Deductions | E9: Rent and Monthly Assistance | H9: ='1. Rental Calculator'!B33 -> a. Cost for only the Unit's Rent | I9: ='1. Rental Calculator'!I33 -> 0
A10: Total Annual Income All Sources: | D10: ='1. Rental Calculator'!I18 -> $0 | E10: Max Rent + Utilities Approved by Agency Supv. | I10: ='1. Rental Calculator'!I38 -> 0
A15: Total Annual Deductions: | D15: ='1. Rental Calculator'!I26 -> 0 | E15: Tenant Share of Utilities | I15: ='1. Rental Calculator'!I39 -> $0
A16: Adjusted Income | D16: ='1. Rental Calculator'!I28 -> $0.00 | E16: Tenant Share of Rent | I16: ='1. Rental Calculator'!I40 -> 0
A17: Monthly Adjusted Income | D17: ='1. Rental Calculator'!I29 -> 0 | E17: Value of the voucher, enter 0 if there is no housing voucher | I17: ='1. Rental Calculator'!I41 -> 0
A18: Minimum Tenant Payment for Rent & Utilities | D18: ='1. Rental Calculator'!I31 -> 0 | E18: Max Monthly Assistance from Program | I18: ='1. Rental Calculator'!I42 -> $0
A19: 50% of Gross Median Income test: does family's gross income exceed 50% of median income for county | I19: =IFERROR(D10/(VLOOKUP(C6,FMRZIP_AMI!H5:I12,2,FALSE)),"") -> 
A20: =IF(I19>0.5,"STOP - household does not qualify for assistance","") -> STOP - household does not qualify for assistance
A21: Area III. Less Annual Deductions:
B22: a. *Number of dependent deductions | G22: $480 x | I22: =H22*480 -> 0
B23: b. Monthly out of pocket childcare/child support expenses (provide documentation) | I23: =H23*12 -> 0
B24: c. Number of elderly or disabled deductions | G24: $400 x | I24: =400*H24 -> 0
B25: d. Other required monthly restitution (provide documentation) | I25: =H25*12 -> 0
B26: *Include dependent Full Time Students of the (co)head of household
A27: Area IV: Adjusted Income Calculation for Tenant Payment
B28: a. Adjusted Income (Total of annual income less deductions) | I28: =IF(D10="$0","$0.00",D10-D15) -> $0.00
B29: b. Monthly Adjusted Income (adjusted annual income divided by 12) | I29: =I28/12 -> 0
B30: c. Select % or Provider Set Amount (Enter zero for Provider preset amount) | H30: =IF(I31<(I29*30%),"Value too low","") ->  | I30: 0
C31: Minimum Tenant Payment for Rent and Utilities | I31: =IF(I30=0,'2. Rental Payment Agreement'!I8,I30*I29) -> 0
A32: Area V: Fair Market Rent Reference Check
B33: a. Cost for only the Unit's Rent | H33: =IF(I33>3880,"High $ Alert", "") ->  | I33: ='1. Rental Calculator'!I33 -> 0
B34: b: Cost of total utilities that are pre-set by landlord and paid separately from rent | H34: =IF(I34>200,"High $ Alert", "") ->  | I34: ='1. Rental Calculator'!I34 -> 0
B35: c. Utility allowance (use Utility Max Calculator tab for utility costs that are not pre-set by the landlord) | I35: =IF('3. Utility Max Calculator'!J35=20,"$0",'3. Utility Max Calculator'!J35) -> 0
B36: d. Equals Rent plus Utilities: | E36: (should not exceed fair market rent of:) | H36: =IFERROR(INDEX(FMRZIP_AMI!B4:G72,F8,MATCH(C7,FMRZIP_AMI!B3:G3,0)),"zip error") -> 3472.7 | I36: =SUM(I33:I35) -> 0
A38: Area VI: Calculation of Monthly Assistance
B39: a. Max Rent + Utilities Approved by Agency Supv. | E39: =IF(I39>H36,(SUM(I39-H36)),"") ->  | F39: =IF(I39>H36,"Overage Must be Justified in Tenant Chart","") ->  | I39: ='1. Rental Calculator'!I38 -> 0
B40: b. Tenant Share of Utilities | I40: ='1. Rental Calculator'!I39 -> $0
B41: c. Tenant Share of Rent | I41: ='1. Rental Calculator'!I40 -> 0
B42: d. Value of the voucher, enter 0 if there is no housing voucher | I42: ='1. Rental Calculator'!I41 -> 0
B43: e. Maximum Monthly Assistance the Contractor Can Pay: | I43: ='1. Rental Calculator'!I42 -> $0
A44: If Applicable Pro-Rated Monthly Assistance or One Time Assistance
A45: If pro-rating the 1st Month
B46: a. Will the Tenant move in on the 1st of the month? | G46: ='1. Rental Calculator'!G45 -> Yes
E47: =IF(G46="no","Select Month and Day","") ->  | G47: =IF(G46="yes","Skip Ahead to Section 2","") -> Skip Ahead to Section 2
B48: Move-in date | D48: Month | E48: ='1. Rental Calculator'!E47 -> Choose One | F48: Day | G48: ='1. Rental Calculator'!G47 -> 0 | I48: =IF(G48="","",IFERROR(1-((G48-1)/(VLOOKUP(E48,A82:B95,2,FALSE))),"")) -> 
B49: c. Pro-rated Rent and Utility | H49: =IF(I49>3880,"High $ Alert", "") -> High $ Alert | I49: =IF(OR(G46="Yes",G46=""),"",(IF(G46="No",(I48)*(I39),("")))) -> 
B50: Pro-rated Tenant Share of Rent and Utilities | G50: =IF(AND(E48="February",G48>29),"Date Error", IF(AND(E48="April",G48>30),"Date Error", IF(AND(E48="June",G48>30),"Date Error", IF(AND(E48="September",G48>30),"Date Error", IF(AND(E48="November",G48>30),"Date Error",""))))) ->  | I50: ='1. Rental Calculator'!I49 -> 
B51: Maximum Pro-rated 1st Mo. Assistance Contractor Can Pay, Less Tenant Payments: | I51: ='1. Rental Calculator'!I50 -> 0
A52: If pro-rating the last month
B53: a. Will the Tenant move out on the last day of the month? | G53: ='1. Rental Calculator'!G52 -> Yes
E54: =IF(G53="no","Select Month and Day ","") ->  | G54: =IF(G53="yes","Skip Ahead to Section 3",IF(G53="unknown","Skip Ahead to Section 3","")) -> Skip Ahead to Section 3
B55: Move-out date | D55: Month | E55: ='1. Rental Calculator'!E54 -> Choose One | F55: Day | G55: ='1. Rental Calculator'!G54 -> 0 | H55: Multiplier
B56: c. Pro-rated Rent and Utility | I56: =IF(G53="no",(I39/VLOOKUP(E55,A82:B95,2,FALSE))*(G55),"") -> 
B57: Pro-rated Tenant Share of Rent and Utilities | G57: =IF(AND(E55="February",G55>29),"Date Error", IF(AND(E55="April",G55>30),"Date Error", IF(AND(E55="June",G55>30),"Date Error", IF(AND(E55="September",G55>30),"Date Error", IF(AND(E55="November",G55>30),"Date Error",""))))) ->  | I57: ='1. Rental Calculator'!I56 -> 
B58: Maximum Pro-rated Last Mo. Assistance Contractor Can Pay, Less Tenant Payments: | I58: ='1. Rental Calculator'!I57 -> 0
A59: If any additional housing financial assistance:
B60: Security deposit assistance | H60: =IF(I60>2000,"High $ Alert", "") ->  | I60: ='1. Rental Calculator'!I59 -> 0
B61: 1st & last month's rent (if not prorated above) | E61: =IF(I61>0,IF((AND(G53="No", G46="No")),"1st & last months' rent were prorated, enter 0",""),"") ->  | H61: =IF(I61>I39*2,"High $ Alert", "") ->  | I61: ='1. Rental Calculator'!I60 -> 0
B62: One time over due housing assistance payments | H62: =IF(I62>1000,"High $ Alert", "") ->  | I62: ='1. Rental Calculator'!I61 -> 0
B63: Other assistance: | C63: List: | D63: ='1. Rental Calculator'!D62 -> 0 | I63: ='1. Rental Calculator'!I62 -> 0
B64: e. Maximum initial and one-time financial assistance Contractor can pay: | I64: ='1. Rental Calculator'!I63 -> 0
A65: Area VIII: Tenant Housing Plan Duration, Frequency of Assistance and Total | XFC65: feb | XFD65: =I40 -> $0
A66: a. Duration of Rental Assistance in this Housing Plan (mos) | D66: Move in date: | E66: ='1. Rental Calculator'!E66 -> 00:00:00 | F66: Housing Plan End Date: | H66: ='1. Rental Calculator'!H66 -> 00:00:00 | I66: 5 | XFC66: mar | XFD66: =I40 -> $0
A67: b. Total # of months of full rent (Do not include prorated months) | E67: ='1. Rental Calculator'!E67 -> 0 | F67: =IF(H66>E66+366, "Rental assistance may not exceed 12 mos","") ->  | XFC67: apr | XFD67: =13*XFC40 -> 0
A68: c. Total Ongoing Monthly Rental Assistance for Duration of Housing Plan | H68: Up to: | I68: ='1. Rental Calculator'!I68 -> 0 | XFC68: total | XFD68: =SUM(XFD61:XFD67) -> 0
A69: =IF((I68>5000),"Prior Written County Approval Required","") ->  | XFC69: minus pro | XFD69: =XFD68-XFD61 -> 0
B70: d. Total Assistance in This Plan* | H70: Up to: | I70: ='1. Rental Calculator'!H70 -> 0
A71: =IF((I70>5000),"Prior Written County Approval Required","") -> 
A72: Justification for any changes from maximums:
A73: Staff Signature: | G73: Date:
A75: Supervisor Sig.:
A76: *No specific classification required
A77: Choose One | D77: Choose One
A78: Yes | D78: Apartment
A79: No | D79: Single Room Occupancy (SRO)
A80: Unknown | D80: Duplex
D81: House
D82: Room and Board
A83: Choose One | D83: Studio
A84: January | B84: 31 | D84: Co-op
A85: February | B85: 28
A86: March | B86: 31
A87: April | B87: 30
A88: May | B88: 31
A89: June | B89: 30
A90: July | B90: 31
A91: August | B91: 31
A92: September | B92: 30
A93: October | B93: 31
A94: November | B94: 30
A95: December | B95: 31
A148: *The stated benefits are accurate as of now but are subject to change due to any modifications in financial conditions.
A150: Plan for sustainability
A152: PERCENTAGE INCREASE or dollar increase
A153: what percentage or what dollar
A154: how many months
H166: Revised 8/18/2022
A292: 0.3 | B292: 0.4 | C292: 0.5 | D292: 0.6 | E292: 0.7 | F292: 0.8 | G292: 0.9 | H292: 1 | I292: Provider Set
A293: ='1. Rental Calculator'!$I$29*A292 -> 0 | B293: ='1. Rental Calculator'!$I$29*B292 -> 0 | C293: ='1. Rental Calculator'!$I$29*C292 -> 0 | D293: ='1. Rental Calculator'!$I$29*D292 -> 0 | E293: ='1. Rental Calculator'!$I$29*E292 -> 0 | F293: ='1. Rental Calculator'!$I$29*F292 -> 0 | G293: ='1. Rental Calculator'!$I$29*G292 -> 0 | H293: ='1. Rental Calculator'!$I$29*H292 -> 0 | I293: 450
A296: Monthly Increase at 5%
A297: Month 1 | B297: Month 2 | C297: Month 3 | D297: Month 4 | E297: Month 5 | F297: Month 6 | G297: Month 7 | H297: Month 8 | I297: Month 9 | J297: Month 10 | K297: Month 11 | L297: Month 12
A298: =A293 -> 0 | B298: =A298+(A298*5%) -> 0 | C298: =B298+(B298*5%) -> 0 | D298: =C298+(C298*5%) -> 0 | E298: 0 | F298: 0 | G298: 0 | H298: 0 | I298: 0 | J298: 0 | K298: 0 | L298: 0
A300: PERCENTAGE INCREASE or dollar increase
A301: what percentage or what dollar
A302: how many months

Sheet Step Descriptions
A1: Area Descriptions
A3: Step 1:
A4: Type of residence | B4: Enter the type of residence that most closely fits the living situation.
A5: # of People this Plan Supports in Res: | B5: Any children and adults in the permanent household, do not include visitors or temporary stays
A6: # of Bedrooms in Res: | B6: Enter the total number of bedrooms in the unit. The tool calculates how many bedrooms a household can qualify for in red, use the recommendation indicated in red
A7: Zip Code of Residence: | B7: zip code of household's unit to which rental assistance will be applied
A9: Step 2:
A10: Name, age and eligibility of All People This Plan Supports: | B10: Enter all individuals' names. Minors can be listed on one line with information separated by commas to save space
A11: Income source | B11: List income from all sources, e.g. SSI, SSDI, GA, employment income, child support, etc.
A12: Monthly pre-tax income | B12: If there are more than one source of income for one person, add all of those pre-tax amounts together and enter into the monthly cell
A14: Step 3:
A15: Number of dependent deductions: | B15: Yellow box: Number of minors who are dependents of the household under the age of 18
A16: Monthly out of pocket childcare/child support expenses: | B16: Annual cost of daycare - must provide receipt, invoice, etc.
A17: Number of elderly or disabled deductions: | B17: Number of adults 65 and older in the household
A18: Other required monthly restitution: | B18: Annual cost of legal restitution ordered by court, child support, any legal fees ordered by a court that lack of payment could result in arrest or further legal consequences, must provide documentation
A20: Step 4:
A21: Adj income & Monthly Adj. Income: | B21: Calculated by the tool
A22: Total Tenant Payment for Rent Utilities: | B22: Maximum amount of funds Tenant expected to contribute to monthly rent and utilities
A24: Step 5:
A25: Cost for only the Unit's Rent: | B25: Amount of monthly rent as indicated on lease or contract
A26: Cost of total utilities that are pre-set by landlord: | B26: Total cost of monthly utilities that the landlord charges the Tenant (basic phone landline, gas, electric, and water also sewer and trash if required by lease)
B27: Basic internet is only allowable if it's connected directly to preventing or resolving homelessness, e.g. applying for jobs, online education, etc. with clinical justification and included in the Tenant Housing Plan.
A28: Utility allowance: | B28: Any allowable utilities that are not part set by the landlord, utilize the Utility calculator tab
A29: Equals Rent plus Utilities: | B29: Calculated by the tool
A31: Step 6:
A32: Tenant Share of Utilities: | B32: Calculated by the tool
A33: Tenant Share of Rent: | B33: Calculated by the tool
A34: Maximum Monthly Assistance: | B34: Calculated by the tool-the is the monthly assistance allowable for rent and utilities
A36: Step 7: Initial/One-time Subsidy amount (complete top portion of tool prior to entry in this section)
A37: Pro-rating the 1st Month: | B37: Select whether or not your program will pro-rate the first month's rent
A38: Move-in Date: | B38: Confirmed move in date as indicated on the lease/rental agreement
A39: Prorated Tenant Share: | B39: Calculated by the tool - rent to be paid by the Tenant
A40: Prorated 1st Month Assistance: | B40: Calculated by the tool - rent to be paid by the program
A42: Security deposit assistance: | B42: Additional supports to house Tenants
A43: 1st & last month's rent: | B43: Total required 1st and last month rent if not prorated
A44: One time over due housing assistance payments: | B44: Total cost for past due rent
A45: Other assistance (include landlord incentives): | B45: list the additional items and then enter total amount for other assistance
A47: Step 8: Tenant Housing Plan Duration, Frequency of Assistance and Total
A48: Duration of Rental Assistance in this Housing Plan: | B48: Beginning and end of contracted rental agreement
A49: Total # of months of full rent: | B49: Total months of rental assistance - DO NOT INCLUDE PRORATED MONTHS
A50: Total Ongoing Monthly Rental Assistance for Duration of Housing Plan: | B50: Calculated by the tool
A51: Total Assistance in This Plan: | B51: Calculated by the tool

Sheet Cells notes (hide) (hidden)
A1: Field | B1: Text
A2: 5a Dependent Deductions | B2: Enter the number of dependent minors under the age of 18 in the yellow box.
A3: 5c Elderly Deduction | B3: Enter the number of adults 65 and older in the household
A4: 5d Other required restitution | B4: Enter the annual amount of legal restitution ordered by court, child support, any legal fees ordered by a court that lack of payment could result in arrest or further legal consequences, must provide documentation
A5: 8b Plus utilities or utility allowance | B5: If total amount of allowable utilities is unknown, enter estimate based on….

Sheet Notes (hidden)
A1: HUD median family income limits for Sacramento CA
A2: https://www.huduser.gov/portal/datasets/il/il2019/2019MedCalc.odn?inputname=Sacramento+County&area_id=METRO40900M40900&fips=%24fips%24&type=%24type%24&year=2019&yy=19&stname=California&stusps=%24stusps%24&statefp=06&incpath=%24incpath%24
A5: HUD fair market rent
A6: https://www.huduser.gov/portal/datasets/fmr/fmrs/FY2020_code/select_Geography.odn

Sheet Rent Reasonableness Worksheet (hidden)
A1: RENT REASONABLE CHECKLIST AND CERTIFICATION
B3: Proposed Unit | C3: Unit #1 | D3: Unit #2 | E3: Unit #3
A4: Address:
A5: Number of Bedrooms:
A6: Square Feet:
A7: Type of Unit/Construction:
A8: Housing Condition:
A9: Location/Accessibility:
A10: Amenities
A11: Unit:
A12: Site:
A13: Neighborhood:
A14: Age in Years:
A15: Utilities (type):
A16: Unit Rent:
A17: Utility Allowance:
A18: Gross Rent:
A19: Handicap Accessible?: | B19: Choose One | C19: Choose One | D19: Choose One | E19: Choose One
A20: Most Recently Charged Rent For Proposed Unit: | B20: $ | C20: Reason for Change:
A22: * Other local resources may be used to obtain information, e.g.: market surveys, classified ads.
A24: I certifiy that I am not a HUD certified inspector and I have evaluated the property located at the above address to the best of my ability and find the following:
A25: CERTIFICATION: A. Compliance with Payment Standard
A27: 1000 | B27: 200 | D27: = $$$$
A28: Contract Rent + | B28: Utility Allowance | D28: Proposed Gross Rent
A30: *Approved rent does not exceed applicable Payment Standard of: | D30: 0
A32: B. Rent Reasonableness
A34: Based upon a comparison with rents for comparable units, I have determined that the proposed rent for the unit __________ IS _________IS NOT reasonable. (Check One)
A36: Printed Name: ___________________ | B36: Signature:_____________________ | D36: Date: _____________

Sheet OCCUPANCY_days in month (hidden)
A1: People | B1: Min Bed | C1: Max Bed | I1: January | K1: February | L1: 1 | M1: April
A2: 1 | B2: 0 | C2: 1 | I2: March | J2: 1 | L2: 2 | M2: June | N2: 1
A3: 2 | B3: 0 | C3: 1 | I3: May | J3: 2 | L3: 3 | M3: September | N3: 2
A4: 3 | B4: 1 | C4: 3 | I4: July | J4: 3 | L4: 4 | M4: November | N4: 3
A5: 4 | B5: 2 | C5: 4 | I5: August | J5: 4 | L5: 5 | N5: 4
A6: 5 | B6: 2 | C6: 4 | I6: October | J6: 5 | L6: 6 | N6: 5
A7: 6 | B7: 3 | C7: 4 | I7: December | J7: 6 | L7: 7 | N7: 6
A8: 7 | B8: 3 | C8: 4 | J8: 7 | L8: 8 | N8: 7
A9: 8 | B9: 4 | C9: 6 | J9: 8 | L9: 9 | N9: 8
A10: 9 | B10: 4 | C10: 6 | J10: 9 | L10: 10 | N10: 9
J11: 10 | L11: 11 | N11: 10
J12: 11 | L12: 12 | N12: 11
J13: 12 | L13: 13 | N13: 12
J14: 13 | L14: 14 | N14: 13
J15: 14 | L15: 15 | N15: 14
J16: 15 | L16: 16 | N16: 15
J17: 16 | L17: 17 | N17: 16
J18: 17 | L18: 18 | N18: 17
J19: 18 | L19: 19 | N19: 18
J20: 19 | L20: 20 | N20: 19
J21: 20 | L21: 21 | N21: 20
J22: 21 | L22: 22 | N22: 21
J23: 22 | L23: 23 | N23: 22
J24: 23 | L24: 24 | N24: 23
J25: 24 | L25: 25 | N25: 24
J26: 25 | L26: 26 | N26: 25
J27: 26 | L27: 27 | N27: 26
J28: 27 | L28: 28 | N28: 27
J29: 28 | N29: 28
J30: 29 | N30: 29
J31: 30 | N31: 30
J32: 31
